bitfinex/quotes_BTCUSD_20251004
["timestamp","ask_amount","ask_price","bid_price","bid_amount"]
[1759581835040,0.19581657,122050.0,122040.0,0.538431]
[1759581835248,0.19581657,122050.0,122040.0,0.37455031]
[1759581835445,0.19581657,122050.0,122040.0,0.538431]
[1759581835789,0.19581657,122050.0,122040.0,0.540631]
[1759581836184,0.19581657,122050.0,122040.0,0.37675031]
[1759581836404,0.19581657,122050.0,122040.0,0.540631]
[1759581836976,0.19581657,122050.0,122040.0,0.37675031]
[1759581837557,0.19581657,122050.0,122040.0,0.48184069]
[1759581838781,0.19581657,122050.0,122040.0,0.31796]
[1759581839190,0.19581657,122050.0,122040.0,0.48184069]
[1759581839757,0.19581657,122050.0,122040.0,0.31796]
[1759581840142,0.19581657,122050.0,122040.0,0.37675031]
[1759581841261,0.19581657,122050.0,122040.0,0.540631]
[1759581841685,0.19581657,122050.0,122040.0,0.37675031]
[1759581842299,0.19581657,122050.0,122040.0,0.540631]
[1759581842835,0.19581657,122050.0,122040.0,0.37675031]
[1759581843037,0.19581657,122050.0,122040.0,0.318]
[1759581843238,0.19581657,122050.0,122040.0,0.0022]
[1759581843441,0.19581657,122050.0,122040.0,0.318]
[1759581843619,0.16388069,122040.0,122030.0,0.05879031]
[1759581843822,0.16903069,122040.0,122030.0,0.3158]
[1759581844031,0.16903069,122040.0,122030.0,0.31795522]
[1759581844586,0.19362271,122040.0,122030.0,0.31795522]
[1759581845536,0.19362271,122040.0,122030.0,0.32095522]
[1759581849465,0.19382711,122040.0,122030.0,0.32095522]
[1759581850942,0.19382711,122040.0,122030.0,0.00515522]
[1759581851144,0.19382711,122040.0,122030.0,0.80639522]
[1759581851379,0.19382711,122040.0,122030.0,0.30639522]
[1759581858424,0.18867711,122040.0,122030.0,0.30843522]
[1759581858563,0.19382711,122040.0,122030.0,0.32091522]
[1759581862000,0.19382711,122040.0,122030.0,0.32295522]
[1759581862474,0.19382711,122040.0,122030.0,0.32091522]
[1759581865379,0.19382711,122040.0,122030.0,0.3188]
[1759581865570,0.19382711,122040.0,122030.0,0.32074466]
[1759581873181,0.19382711,122040.0,122010.0,0.17089328]
[1759581873404,0.19382711,122040.0,122030.0,0.08516]
[1759581874401,0.19382711,122040.0,122030.0,0.29436]
[1759581882626,0.19081711,122040.0,122030.0,0.29634]
[1759581883270,0.19401711,122040.0,122030.0,0.29634]
[1759581883461,0.19401711,122040.0,122030.0,0.29436]
[1759581884513,0.19401711,122040.0,122030.0,0.29634]
[1759581885338,0.19401711,122040.0,122030.0,0.29436]
[1759581887646,0.16389412,122030.0,122020.0,0.01018901]
[1759581887797,0.16389412,122030.0,122020.0,2.77700401]
[1759581887997,0.16389412,122030.0,122020.0,2.77921777]
[1759581888406,0.16604412,122030.0,122020.0,2.77921777]
[1759581888640,0.16389412,122030.0,122020.0,2.77921777]
[1759581888893,0.12389412,122030.0,122020.0,2.77921777]
[1759581889289,0.12389412,122030.0,122020.0,2.78221777]
[1759581889489,0.12604412,122030.0,122020.0,2.78221777]
[1759581889900,0.12389412,122030.0,122020.0,2.78221777]
[1759581890095,0.12389412,122030.0,122020.0,2.78521777]
[1759581890328,0.19187711,122040.0,122020.0,2.78521777]
[1759581890510,0.19187711,122040.0,122030.0,2.451015]
[1759581890869,0.19402711,122040.0,122030.0,2.451015]
[1759581893156,0.19402711,122040.0,122030.0,2.681615]
[1759581893292,0.19402711,122040.0,122030.0,0.31576]
[1759581913005,0.27714917,122040.0,122030.0,0.31576]
[1759581913628,0.16390086,122030.0,122010.0,0.19096812]
[1759581913836,0.16694086,122030.0,122020.0,2.766775]
[1759581914047,0.16390755,122020.0,122000.0,0.61371668]
[1759581914253,0.18849504,122030.0,122020.0,0.08516]
[1759581914707,0.19049504,122030.0,122020.0,0.08516]
[1759581914912,0.19353504,122030.0,122020.0,0.08516]
[1759581915118,0.16390755,122020.0,122010.0,0.012]
[1759581915318,0.16390755,122020.0,122010.0,2.766775]
[1759581915536,0.16894755,122020.0,122010.0,2.766775]
[1759581916369,0.00504,122020.0,122010.0,2.766775]
[1759581916592,0.16894755,122020.0,122010.0,2.766775]
[1759581917199,0.19354256,122020.0,122010.0,2.766775]
[1759581917345,0.19354256,122020.0,122010.0,2.780845]
[1759581917552,0.19354256,122020.0,122010.0,2.778775]
[1759581917758,0.19354256,122020.0,122010.0,2.780845]
[1759581918120,0.19354256,122020.0,122010.0,2.778775]
[1759581919979,0.19354256,122020.0,122010.0,2.77897947]
[1759581920644,0.19354256,122020.0,122010.0,2.78104947]
[1759581921040,0.19354256,122020.0,122010.0,2.77897947]
[1759581921608,0.19354256,122020.0,122010.0,2.78104947]
[1759581922543,0.19354256,122020.0,122010.0,2.77897947]
[1759581922716,0.19354256,122020.0,122010.0,2.58785147]
[1759581922968,0.19354256,122020.0,122010.0,2.58578147]
[1759581923178,0.19354256,122020.0,122010.0,0.01220447]
[1759581923394,0.19354256,122020.0,122010.0,0.32800447]
[1759581923952,0.19354256,122020.0,122010.0,0.32200447]
[1759581924836,0.19354256,122020.0,122010.0,0.31600447]
[1759581930947,0.21187729,122020.0,122010.0,0.31600447]
[1759581931082,0.21187729,122020.0,122010.0,0.08516]
[1759581931274,0.19354256,122020.0,122010.0,0.08516]
[1759581931497,0.19354256,122020.0,122010.0,0.58516]
[1759581931702,0.19354256,122020.0,122010.0,0.08516]
[1759581932502,0.19354256,122020.0,122010.0,0.28368]
[1759581942009,0.16392099,122010.0,122000.0,0.01858953]
[1759581942229,0.16712099,122010.0,122000.0,0.33438953]
[1759581942452,0.16913099,122010.0,122000.0,0.31600449]
[1759581942655,0.16593099,122010.0,122000.0,0.31808449]
[1759581942795,0.19052832,122010.0,122000.0,0.31808449]
[1759581943206,0.19052832,122010.0,122000.0,0.32108449]
[1759581944250,0.19052832,122010.0,122000.0,0.32308449]
[1759581945919,0.15052832,122010.0,122000.0,0.32308449]
[1759581946129,0.15052832,122010.0,122000.0,0.34137242]
[1759581946348,0.14851832,122010.0,122000.0,0.34137242]
[1759581946557,0.02459733,122010.0,122000.0,0.34137242]
[1759581947364,0.18851832,122010.0,122000.0,0.34137242]
[1759581948549,0.19052832,122010.0,122000.0,0.34137242]
[1759581949367,0.02660733,122010.0,122000.0,0.34137242]
[1759581949704,0.19052832,122010.0,122000.0,0.34137242]
[1759581951279,0.19052832,122010.0,122000.0,0.02557242]
[1759581951525,0.19052832,122010.0,122000.0,0.34137242]
[1759581953147,0.15052832,122010.0,122000.0,0.34137242]
[1759581954869,0.15052832,122010.0,122000.0,0.02557242]
[1759581955076,0.15052832,122010.0,122000.0,0.34137242]
[1759581955278,0.15052832,122010.0,122000.0,0.32308449]
[1759581955279,0.15253832,122010.0,122000.0,0.32308449]
[1759581955488,0.15573832,122010.0,122000.0,0.00728449]
[1759581955662,0.15573832,122010.0,122000.0,0.32100449]
[1759581955864,0.15573832,122010.0,122000.0,0.34008429]
[1759581956374,0.15253832,122010.0,122000.0,0.34216429]
[1759581957418,0.15253832,122010.0,122000.0,0.02636429]
[1759581957633,0.15253832,122010.0,122000.0,0.34216429]
[1759581958635,0.15052832,122010.0,122000.0,0.34216429]
[1759581958840,0.15052832,122010.0,122000.0,0.25700429]
[1759581959050,0.15052832,122010.0,122000.0,0.02636429]
[1759581959251,0.15052832,122010.0,122000.0,0.34536429]
[1759581959567,0.15052832,122010.0,122000.0,0.02636429]
[1759581959759,0.15052832,122010.0,122000.0,0.34216429]
[1759581959951,0.15250832,122010.0,122000.0,0.34216429]
[1759581960183,0.11250832,122010.0,122000.0,0.34216429]
[1759581960724,0.11250832,122010.0,122000.0,0.25700429]
[1759581961030,0.11250832,122010.0,122000.0,0.02636429]
[1759581961670,0.11250832,122010.0,122000.0,0.34216429]
[1759581961846,0.11052832,122010.0,122000.0,0.02636429]
[1759581962053,0.11052832,122010.0,122000.0,0.34216429]
[1759581962262,0.11052832,122010.0,122000.0,0.34536429]
[1759581962456,0.11052832,122010.0,122000.0,0.25700429]
[1759581962670,0.11052832,122010.0,122000.0,0.34216429]
[1759581962904,0.11250832,122010.0,122000.0,0.00728449]
[1759581963395,0.11250832,122010.0,122000.0,0.32308449]
[1759581963604,0.11250832,122010.0,122000.0,0.00728449]
[1759581963838,0.11557832,122010.0,122000.0,0.32308449]
[1759581964027,0.11557832,122010.0,122000.0,0.32108449]
[1759581964505,0.11557832,122010.0,122000.0,0.08744449]
[1759581964703,0.11557832,122010.0,122000.0,0.31808449]
[1759581966816,0.11557832,122010.0,122000.0,0.08536449]
[1759581967028,0.11557832,122010.0,122000.0,0.23084449]
[1759581967029,0.19870038,122010.0,122000.0,0.23084449]
[1759581967230,0.22330081,122010.0,122000.0,0.00020449]
[1759581967442,0.28442697,122010.0,122000.0,0.00020449]
[1759581967611,0.28442697,122010.0,122000.0,0.08672449]
[1759581968036,0.29542697,122010.0,122000.0,0.08672449]
[1759581968263,0.32557887,122010.0,122000.0,0.00020449]
[1759581968462,0.32557887,122010.0,122000.0,0.07252449]
[1759581968605,0.32557887,122010.0,122000.0,0.00020449]
[1759581968816,0.32557887,122010.0,122000.0,0.23084449]
[1759581973316,0.32557887,122010.0,122000.0,0.00020449]
[1759581973453,0.32557887,122010.0,122000.0,0.23088449]
[1759581988101,0.32557887,122010.0,122000.0,0.00020449]
[1759581988302,0.32557887,122010.0,122000.0,0.23088449]
[1759581988967,0.59417887,122010.0,122000.0,0.23088449]
[1759581990564,0.32557887,122010.0,122000.0,0.00020449]
[1759581990878,0.32557887,122010.0,122000.0,0.23088449]
[1759582000784,0.59417887,122010.0,122000.0,0.23088449]
[1759582002230,0.59417887,122010.0,122000.0,0.00020449]
[1759582002443,0.59417887,122010.0,122000.0,0.23088449]
[1759582004511,0.59417887,122010.0,122000.0,0.00020449]
[1759582004747,0.59417887,122010.0,122000.0,0.23088449]
[1759582008279,0.59417887,122010.0,122000.0,0.00020449]
[1759582008488,1.36496555,122010.0,122000.0,0.00020449]
[1759582008690,0.93417887,122010.0,122000.0,0.07080449]
[1759582009094,0.93417887,122010.0,122000.0,0.00020449]
[1759582009370,0.93417887,122010.0,122000.0,0.13068449]
[1759582018665,0.66557887,122010.0,122000.0,0.13068449]
[1759582021871,0.66557887,122010.0,122000.0,0.00020449]
[1759582024434,0.93417887,122010.0,122000.0,0.00020449]
[1759582060089,0.66557887,122010.0,122000.0,0.00020449]
[1759582074223,0.74979294,122010.0,122000.0,0.00020449]
[1759582078048,1.01839294,122010.0,122000.0,0.00020449]
[1759582080276,0.93417887,122010.0,122000.0,0.00020449]
[1759582096356,1.36500474,122010.0,122000.0,0.00020449]
[1759582096557,0.1639613,121980.0,121960.0,0.1271702]
[1759582096874,0.1639613,121980.0,121970.0,2.845017]
[1759582097093,0.1639613,121980.0,121970.0,0.0872]
[1759582097269,0.1239613,121980.0,121970.0,0.0872]
[1759582097432,0.14856573,121980.0,121970.0,0.0872]
[1759582097630,0.14856573,121980.0,121970.0,0.08734776]
[1759582097821,0.14856573,121980.0,121970.0,0.31802776]
[1759582098669,0.14856573,121980.0,121970.0,0.31961776]
[1759582099320,0.14856573,121980.0,121970.0,0.32461776]
[1759582102316,0.14856573,121980.0,121970.0,0.32523143]
[1759582104352,0.10856573,121980.0,121970.0,0.32523143]
[1759582107803,0.10856573,121980.0,121970.0,0.09455143]
[1759582108006,0.10856573,121980.0,121970.0,0.32523143]
[1759582109019,0.10856573,121980.0,121970.0,0.32223143]
[1759582109221,0.10856573,121980.0,121970.0,0.00476143]
[1759582109387,0.11156573,121980.0,121970.0,3.07845843]
[1759582109591,0.11156573,121980.0,121970.0,0.31864143]
[1759582110034,0.11456573,121980.0,121970.0,0.00276143]
[1759582110268,0.11456573,121980.0,121970.0,3.07645843]
[1759582110454,0.11456573,121980.0,121970.0,0.31864143]
[1759582111437,0.07456573,121980.0,121970.0,0.23344143]
[1759582111659,0.07456573,121980.0,121970.0,0.31864143]
[1759582112291,0.07456573,121980.0,121970.0,0.32023143]
[1759582112654,0.07456573,121980.0,121970.0,0.31864143]
[1759582113662,0.07456573,121980.0,121970.0,0.32023143]
[1759582114509,0.07456573,121980.0,121970.0,0.00435143]
[1759582114714,0.07456573,121980.0,121970.0,0.82023143]
[1759582114877,0.07456573,121980.0,121970.0,0.32023143]
[1759582115795,0.07456573,121980.0,121970.0,0.00435143]
[1759582116008,0.07456573,121980.0,121970.0,2.84577843]
[1759582116215,0.07456573,121980.0,121970.0,0.31864143]
[1759582118111,0.07456573,121980.0,121970.0,0.00276143]
[1759582118324,0.07456573,121980.0,121970.0,0.81864143]
[1759582118546,0.07456573,121980.0,121970.0,0.31864143]
[1759582118763,0.03060443,121980.0,121970.0,0.31864143]
[1759582118977,0.19456573,121980.0,121970.0,0.31864143]
[1759582125636,0.19667573,121980.0,121970.0,0.31864143]
[1759582125873,0.15667573,121980.0,121970.0,0.31864143]
[1759582126055,0.18128024,121980.0,121970.0,0.31864143]
[1759582126269,0.17917024,121980.0,121970.0,0.31864143]
[1759582126468,0.18442024,121980.0,121970.0,0.31864143]
[1759582126641,0.18442024,121980.0,121970.0,0.23344143]
[1759582126845,0.18442024,121980.0,121970.0,0.31864143]
[1759582127116,0.18128024,121980.0,121970.0,0.31864143]
[1759582127457,0.18128024,121980.0,121970.0,0.00276143]
[1759582127658,0.18128024,121980.0,121970.0,0.31864143]
[1759582128510,0.18442024,121980.0,121970.0,0.31864143]
[1759582130095,0.18442024,121980.0,121970.0,0.23344143]
[1759582130304,0.18442024,121980.0,121970.0,0.31864143]
[1759582131609,0.18442024,121980.0,121970.0,0.23344143]
[1759582131813,0.18442024,121980.0,121970.0,0.31864143]
[1759582132871,0.14442024,121980.0,121970.0,0.31864143]
[1759582140027,0.10442024,121980.0,121970.0,0.31864143]
[1759582142240,0.10452024,121980.0,121970.0,0.23144143]
[1759582142462,0.10452024,121980.0,121970.0,0.31664143]
[1759582144023,0.10452024,121980.0,121970.0,0.31874143]
[1759582144253,0.10128024,121980.0,121970.0,0.31874143]
[1759582145012,0.10452024,121980.0,121970.0,0.31664143]
[1759582148071,0.07652024,121980.0,121970.0,0.31664143]
[1759582150733,0.07652024,121980.0,121970.0,0.08596143]
[1759582150948,0.07652024,121980.0,121970.0,0.31664143]
[1759582155236,0.19391581,121980.0,121970.0,0.31664143]
[1759582156782,0.27703787,121980.0,121970.0,0.08596143]
[1759582157009,0.27703787,121980.0,121970.0,0.31664143]
[1759582168294,0.27703787,121980.0,121970.0,0.08596143]
[1759582168494,0.27682063,121980.0,121970.0,0.31664143]
[1759582172853,0.27682063,121980.0,121970.0,0.08596143]
[1759582173064,0.27682063,121980.0,121970.0,0.31664143]
[1759582177032,0.27682063,121980.0,121970.0,0.00076143]
[1759582177203,0.27682063,121980.0,121970.0,0.31664143]
[1759582178610,0.27682063,121980.0,121970.0,0.00076143]
[1759582178817,0.27682063,121980.0,121970.0,0.31664143]
[1759582181270,0.27682063,121980.0,121970.0,0.00076143]
[1759582181473,0.27682063,121980.0,121970.0,0.31664143]
[1759582191547,0.27682063,121980.0,121970.0,0.00076143]
[1759582191750,0.27682063,121980.0,121970.0,0.31664143]
[1759582206089,0.27682063,121980.0,121970.0,0.00076143]
[1759582206344,0.27682063,121980.0,121970.0,0.31664143]
[1759582208781,0.27147063,121980.0,121970.0,0.31862143]
[1759582209089,0.27147063,121980.0,121970.0,0.32021143]
[1759582209624,0.27147063,121980.0,121970.0,0.31862143]
[1759582214734,0.18834857,121980.0,121970.0,0.48259617]
[1759582214942,0.1639613,121980.0,121970.0,0.48418617]
[1759582215336,0.18857007,121990.0,121970.0,0.48418617]
[1759582215544,0.61169213,121990.0,121980.0,0.00159]
[1759582215759,0.61169213,121990.0,121980.0,0.00397908]
[1759582216364,0.61269213,121990.0,121980.0,0.00397908]
[1759582216683,0.61269213,121990.0,121980.0,0.00238908]
[1759582216887,0.61169213,121990.0,121980.0,0.00238908]
[1759582217275,0.61569213,121990.0,121980.0,0.00238908]
[1759582217779,0.61869213,121990.0,121980.0,0.00238908]
[1759582219485,0.61869213,121990.0,121980.0,0.01878521]
[1759582223823,0.61869213,121990.0,121980.0,0.00238908]
[1759582224444,0.62369213,121990.0,121980.0,0.31628908]
[1759582225726,0.62369213,121990.0,121980.0,0.31826908]
[1759582227346,0.59614746,121990.0,121980.0,0.31826908]
[1759582227972,0.59908746,121990.0,121980.0,0.31826908]
[1759582228178,0.59614746,121990.0,121980.0,0.31826908]
[1759582229464,0.59933746,121990.0,121980.0,0.31628908]
[1759582230292,0.59933746,121990.0,121980.0,0.31826908]
[1759582230497,0.59614746,121990.0,121980.0,0.31826908]
[1759582231320,0.43012206,121990.0,121980.0,0.31826908]
[1759582231538,0.59406992,121990.0,121980.0,0.31826908]
[1759582232944,0.59604992,121990.0,121980.0,0.31826908]
[1759582233874,0.59604992,121990.0,121980.0,2.74163738]
[1759582233875,0.007,121990.0,121980.0,2.74163738]
[1759582234476,0.007,121990.0,121980.0,2.7662383]
[1759582235080,0.004,121990.0,121980.0,2.7662383]
[1759582235360,0.34054873,122010.0,121990.0,0.16394165]
[1759582235543,0.42367079,122010.0,122000.0,0.23068]
[1759582235741,0.42565079,122010.0,122000.0,0.23068]
[1759582236555,0.42869079,122010.0,122000.0,0.31588]
[1759582237200,0.43269079,122010.0,122000.0,0.31588]
[1759582237887,0.43569079,122010.0,122000.0,0.31588]
[1759582238091,0.43269079,122010.0,122000.0,0.31588]
[1759582238506,0.43469079,122010.0,122000.0,0.31588]
[1759582238713,0.43469079,122010.0,122000.0,0.0852]
[1759582238920,0.44169079,122010.0,122000.0,0.0852]
[1759582239986,0.44169079,122010.0,122000.0,0.31588]
[1759582241821,0.60561279,122010.0,121990.0,0.1639469]
[1759582242011,0.60561279,122010.0,122000.0,0.31588]
[1759582242442,0.60561279,122010.0,121980.0,0.21975756]
[1759582242645,0.68091136,122000.0,121990.0,0.23068]
[1759582242818,0.68289136,122000.0,121980.0,0.0852]
[1759582243029,0.67985136,122000.0,121990.0,0.23068]
[1759582243553,0.68289136,122000.0,121990.0,0.23068]
[1759582243899,0.69108808,122000.0,121970.0,0.18872464]
[1759582244098,0.16699602,121990.0,121980.0,0.31592]
[1759582244438,0.25011808,121990.0,121970.0,0.16412204]
[1759582244635,0.25011808,121990.0,121970.0,0.00014776]
[1759582244636,0.00198,121980.0,121970.0,0.00014776]
[1759582244877,0.00502,121980.0,121970.0,0.4800425]
[1759582245074,0.00502,121980.0,121970.0,0.31606776]
[1759582245484,0.00502,121980.0,121970.0,0.00014776]
[1759582245683,0.00502,121980.0,121970.0,0.31606776]
[1759582246213,0.00502,121980.0,121970.0,0.31602776]
[1759582246425,0.00502,121980.0,121970.0,0.4800025]
[1759582246854,0.00502,121980.0,121970.0,0.4839825]
[1759582247703,0.00502,121980.0,121970.0,0.4869825]
[1759582248550,0.00198,121980.0,121970.0,0.4869825]
[1759582250657,0.25011808,121990.0,121970.0,0.4869825]
[1759582251413,0.25011808,121990.0,121970.0,0.1681025]
[1759582251610,0.25011808,121990.0,121980.0,0.31588]
[1759582251829,0.25209808,121990.0,121980.0,0.31588]
[1759582252454,0.27670275,121990.0,121980.0,0.31588]
[1759582252765,0.27770275,121990.0,121980.0,0.31588]
[1759582266961,0.1639613,121980.0,121970.0,0.16397438]
[1759582267165,0.1639613,121980.0,121970.0,0.25132438]
[1759582267365,0.1639613,121980.0,121970.0,0.08775912]
[1759582267767,0.1639613,121980.0,121970.0,0.25173386]
[1759582268189,0.27472275,121990.0,121970.0,0.48441386]
[1759582268532,0.27472275,121990.0,121970.0,0.48700474]
[1759582269107,0.27472275,121990.0,121970.0,0.48500474]
[1759582269384,0.1639613,121980.0,121970.0,0.32103]
[1759582269764,0.1639613,121980.0,121970.0,0.31803]
[1759582269985,0.1659213,121980.0,121970.0,0.31803]
[1759582270206,0.1690113,121980.0,121970.0,0.32103]
[1759582270414,0.1690113,121980.0,121970.0,0.32303]
[1759582270606,0.1659213,121980.0,121970.0,0.32003]
[1759582270845,0.1659213,121980.0,121970.0,0.32303]
[1759582271049,0.1659213,121980.0,121970.0,0.32103]
[1759582271264,0.1659213,121980.0,121970.0,0.32303]
[1759582274262,0.1659213,121980.0,121970.0,0.48700474]
[1759582274470,0.1659213,121980.0,121970.0,0.32303]
[1759582274675,0.1659213,121980.0,121970.0,0.48741386]
[1759582274878,0.1659213,121980.0,121970.0,0.32343912]
[1759582276034,0.1659213,121980.0,121970.0,0.48741386]
[1759582276442,0.00196,121980.0,121970.0,0.48741386]
[1759582276643,0.1659213,121980.0,121970.0,0.48741386]
[1759582277457,0.00196,121980.0,121970.0,0.48741386]
[1759582277673,0.27477275,121990.0,121970.0,0.48741386]
[1759582277893,0.27477275,121990.0,121970.0,0.48700474]
[1759582278464,0.27477275,121990.0,121970.0,0.48500474]
[1759582279522,0.27477275,121990.0,121970.0,0.48200474]
[1759582279732,0.27477275,121990.0,121970.0,0.48500474]
[1759582279909,0.27477275,121990.0,121970.0,0.48700474]
[1759582280121,0.27477275,121990.0,121970.0,0.48859474]
[1759582281092,0.25016808,121990.0,121970.0,0.48859474]
[1759582282316,0.25016808,121990.0,121970.0,0.17271474]
[1759582282527,0.25016808,121990.0,121980.0,0.31584]
[1759582282738,0.25212808,121990.0,121980.0,0.31584]
[1759582283127,0.25212808,121990.0,121980.0,0.31604454]
[1759582283691,0.24807808,121990.0,121980.0,0.31819454]
[1759582284311,0.25003808,121990.0,121980.0,0.31819454]
[1759582286505,0.25312808,121990.0,121980.0,0.31819454]
[1759582291485,0.25003808,121990.0,121980.0,0.31819454]
[1759582291890,0.25324808,121990.0,121980.0,0.31819454]
[1759582292103,0.25324808,121990.0,121980.0,0.31604454]
[1759582298593,0.25324808,121990.0,121980.0,0.31815454]
[1759582302388,0.25003808,121990.0,121980.0,0.31815454]
[1759582303989,0.25324808,121990.0,121980.0,0.31815454]
[1759582305404,0.25324808,121990.0,121980.0,0.31604454]
[1759582305642,0.25324808,121990.0,121980.0,0.00020454]
[1759582305841,0.25324808,121990.0,121980.0,0.31604454]
[1759582309017,0.25324808,121990.0,121980.0,0.23084454]
[1759582309167,0.25324808,121990.0,121980.0,0.31815454]
[1759582309772,0.25324808,121990.0,121980.0,0.31604454]
[1759582310229,0.25324808,121990.0,121980.0,0.31815454]
[1759582310561,0.25324808,121990.0,121980.0,0.00231454]
[1759582310760,0.25324808,121990.0,121980.0,0.31604454]
[1759582313977,0.25324808,121990.0,121980.0,0.00020454]
[1759582314190,0.25324808,121990.0,121980.0,0.31604454]
[1759582316923,0.25324808,121990.0,121980.0,0.00020454]
[1759582317125,0.25324808,121990.0,121980.0,0.31604454]
[1759582320543,0.25324808,121990.0,121980.0,0.00020454]
[1759582320735,0.25324808,121990.0,121980.0,0.31604454]
[1759582331659,0.25324808,121990.0,121980.0,0.00020454]
[1759582331869,0.25324808,121990.0,121980.0,0.31604454]
[1759582337612,0.25324808,121990.0,121980.0,0.00020454]
[1759582337854,0.25324808,121990.0,121980.0,0.31604454]
[1759582339145,0.25324808,121990.0,121980.0,0.00020454]
[1759582339355,0.25324808,121990.0,121980.0,0.31604454]
[1759582339898,0.25324808,121990.0,121980.0,0.00020454]
[1759582340306,0.25324808,121990.0,121980.0,0.31604454]
[1759582341548,0.27785319,121990.0,121980.0,0.31604454]
[1759582342533,0.27785319,121990.0,121980.0,0.31801454]
[1759582342795,0.27785319,121990.0,121980.0,0.31604454]
[1759582351255,0.27785319,121990.0,121980.0,0.00020454]
[1759582351488,0.27785319,121990.0,121980.0,0.23084454]
[1759582351699,0.27785319,121990.0,121980.0,0.31604454]
[1759582355252,0.27785319,121990.0,121980.0,0.00020454]
[1759582355462,0.27785319,121990.0,121980.0,0.31604454]
[1759582355852,0.27785319,121990.0,121980.0,0.00020454]
[1759582356051,0.27785319,121990.0,121980.0,0.31604454]
[1759582358653,0.27785319,121990.0,121980.0,0.23084454]
[1759582358859,0.27785319,121990.0,121980.0,0.31604454]
[1759582359457,0.27785319,121990.0,121980.0,0.00020454]
[1759582359726,0.27785319,121990.0,121980.0,0.31604454]
[1759582362807,0.27785319,121990.0,121980.0,0.00020454]
[1759582363021,0.27785319,121990.0,121980.0,0.31604454]
[1759582365910,0.27785319,121990.0,121980.0,0.00020454]
[1759582366092,0.27785319,121990.0,121980.0,0.31604454]
[1759582369929,0.27785319,121990.0,121980.0,0.00020454]
[1759582370135,0.27785319,121990.0,121980.0,0.31604454]
[1759582374447,0.27785319,121990.0,121980.0,0.00020454]
[1759582374653,0.27785319,121990.0,121980.0,0.27116454]
[1759582378706,0.27789319,121990.0,121980.0,0.27116454]
[1759582381883,0.27789319,121990.0,121980.0,0.00020454]
[1759582382083,0.27789319,121990.0,121980.0,0.31604454]
[1759582386580,0.27789319,121990.0,121980.0,0.31617076]
[1759582388508,0.16397474,121970.0,121960.0,0.08895676]
[1759582388684,0.16397474,121970.0,121960.0,0.17616596]
[1759582388914,0.16397474,121970.0,121960.0,0.17657514]
[1759582389155,0.18858102,121970.0,121960.0,0.17657514]
[1759582389417,0.18858102,121970.0,121960.0,0.17816514]
[1759582389793,0.18858102,121970.0,121960.0,0.41280514]
[1759582390673,0.18858102,121970.0,121960.0,0.41780514]
[1759582391235,0.02460628,121970.0,121960.0,0.41780514]
[1759582392319,0.14857975,121980.0,121960.0,0.41780514]
[1759582392644,0.16397474,121970.0,121960.0,0.41739596]
[1759582392850,0.16397474,121970.0,121960.0,0.44200224]
[1759582393232,0.16397474,121970.0,121960.0,0.43300224]
[1759582393662,0.16397474,121970.0,121960.0,0.44200224]
[1759582393890,0.25630809,121980.0,121960.0,0.44200224]
[1759582394111,0.25630809,121980.0,121960.0,0.43300224]
[1759582394324,0.25630809,121980.0,121960.0,0.43800224]
[1759582394534,0.16397474,121970.0,121960.0,0.43800224]
[1759582395160,0.16397474,121970.0,121960.0,0.43300224]
[1759582395481,0.16397474,121970.0,121960.0,0.43700224]
[1759582396543,0.16397474,121970.0,121960.0,0.44200224]
[1759582396936,0.16397474,121970.0,121960.0,0.43700224]
[1759582397464,0.16397474,121970.0,121960.0,0.44200224]
[1759582397870,0.25630809,121980.0,121970.0,0.00020457]
[1759582398022,0.25827809,121980.0,121970.0,0.00216457]
[1759582399074,0.25827809,121980.0,121970.0,0.00416457]
[1759582400126,0.26125809,121980.0,121970.0,0.00520457]
[1759582401003,0.26125809,121980.0,121970.0,0.32104457]
[1759582402446,0.26125809,121980.0,121970.0,0.00520457]
[1759582402663,0.26125809,121980.0,121970.0,0.32104457]
[1759582408778,0.26125809,121980.0,121970.0,0.32117013]
[1759582410070,0.26125809,121980.0,121970.0,0.23597013]
[1759582410280,0.26125809,121980.0,121970.0,0.32117013]
[1759582412271,0.26125809,121980.0,121970.0,0.09053013]
[1759582412476,0.26125809,121980.0,121970.0,0.32117013]
[1759582413263,0.26125809,121980.0,121970.0,0.00533013]
[1759582413570,0.26125809,121980.0,121970.0,0.32117013]
[1759582414517,0.26125809,121980.0,121970.0,0.00533013]
[1759582414735,0.26125809,121980.0,121970.0,0.32117013]
[1759582415081,0.27615393,121980.0,121970.0,0.32117013]
[1759582415705,0.27615393,121980.0,121970.0,0.31917013]
[1759582416121,0.26125809,121980.0,121970.0,0.31817013]
[1759582417742,0.26125809,121980.0,121970.0,0.31617013]
[1759582417956,0.26225809,121980.0,121970.0,0.31617013]
[1759582430804,0.26225809,121980.0,121970.0,0.00033013]
[1759582430980,0.26225809,121980.0,121970.0,0.31617013]
[1759582432658,0.26225809,121980.0,121970.0,0.23097013]
[1759582432860,0.26225809,121980.0,121970.0,0.31617013]
[1759582436356,0.26225809,121980.0,121970.0,0.23097013]
[1759582436545,0.26225809,121980.0,121970.0,0.31617013]
[1759582438269,0.26225809,121980.0,121970.0,0.23097013]
[1759582438473,0.26225809,121980.0,121970.0,0.31617013]
[1759582442816,0.26225809,121980.0,121970.0,0.00033013]
[1759582443018,0.26225809,121980.0,121970.0,0.31617013]
[1759582446313,0.26225809,121980.0,121970.0,0.00033013]
[1759582446520,0.26225809,121980.0,121970.0,0.31617013]
[1759582450410,0.26225809,121980.0,121970.0,0.00033013]
[1759582450620,0.26225809,121980.0,121970.0,0.31617013]
[1759582462708,0.26225809,121980.0,121970.0,0.23097013]
[1759582462973,0.26225809,121980.0,121970.0,0.31617013]
[1759582472276,1.06339898,121980.0,121970.0,0.00033013]
[1759582472495,0.63240999,121980.0,121970.0,0.00033013]
[1759582472707,1.57860204,121980.0,121970.0,0.00033013]
[1759582473586,1.14661305,121980.0,121970.0,0.00033013]
[1759582474061,1.15061305,121980.0,121970.0,0.00033013]
[1759582475282,1.15361305,121980.0,121970.0,0.00033013]
[1759582475899,0.63840999,121980.0,121970.0,0.00033013]
[1759582476097,0.35773315,121980.0,121970.0,0.00230013]
[1759582476373,0.69773315,121980.0,121970.0,0.00230013]
[1759582476588,0.63855999,121980.0,121970.0,0.00033013]
[1759582479450,0.63855999,121980.0,121970.0,0.17233013]
[1759582481119,0.63855999,121980.0,121970.0,0.00033013]
[1759582488133,1.06954898,121980.0,121970.0,0.00033013]
[1759582488334,0.63855999,121980.0,121970.0,0.00033013]
[1759582488544,0.72277406,121980.0,121970.0,0.00033013]
[1759582488748,0.63855999,121980.0,121970.0,0.00230013]
[1759582488936,0.63855999,121980.0,121970.0,0.00033013]
[1759582489344,0.60330809,121980.0,121970.0,0.0202876]
[1759582490252,0.60330809,121980.0,121970.0,0.0186976]
[1759582491103,0.52018603,121980.0,121970.0,0.18267234]
[1759582491359,0.18018603,121980.0,121970.0,0.16786487]
[1759582491569,0.15557975,121980.0,121970.0,0.18426234]
[1759582492340,0.15557975,121980.0,121970.0,0.16786487]